bitfinex/quotes_ETHUSD_20220201
["timestamp","ask_amount","ask_price","bid_price","bid_amount"]
[1643748144221,0.95671986,2774.9,2774.2,1.0]
[1643748144421,0.95671986,2774.9,2773.9,2.98244]
[1643748145022,0.95671986,2774.9,2774.0,0.84312122]
[1643748145023,0.38201359,2774.8,2774.0,0.84312122]
[1643748145221,0.38201359,2774.8,2774.0,1.84312122]
[1643748145528,0.95671986,2774.9,2774.1,0.90113]
[1643748145529,0.04092649,2774.9,2774.1,0.90113]
[1643748146759,0.04092649,2774.9,2773.9,1.98244]
[1643748146760,0.1802,2774.8,2773.9,1.98244]
[1643748146962,0.1802,2774.8,2773.9,0.1802]
[1643748146963,0.37566196,2774.2,2773.9,0.1802]
[1643748147164,0.37566196,2774.2,2773.3,3.2904]
[1643748147561,0.67566196,2774.2,2773.3,3.1102]
[1643748147760,1.45304654,2774.2,2773.5,0.81547697]
[1643748147960,0.77738458,2774.2,2773.5,0.81547697]
[1643748148167,0.1802,2774.4,2773.6,2.0]
[1643748148367,0.1802,2774.5,2773.6,2.0]
[1643748148565,3.943,2775.0,2773.7,0.52]
[1643748148566,0.1802,2774.8,2773.7,0.52]
[1643748148765,0.1802,2774.8,2773.7,0.82]
[1643748148965,0.39140795,2774.7,2773.7,1.24582502]
[1643748149165,0.39140795,2774.7,2773.8,0.90111]
[1643748149166,0.1802,2774.6,2773.8,0.90111]
[1643748149367,0.81788394,2774.4,2773.8,0.90111]
[1643748149567,0.1802,2774.6,2773.8,0.90111]
[1643748149766,0.1802,2774.8,2773.8,0.90111]
[1643748150266,0.1802,2774.8,2773.8,2.90111]
[1643748150514,0.1802,2774.8,2774.2,0.67818052]
[1643748150715,0.1802,2774.8,2774.3,2.92189696]
[1643748151111,0.1802,2774.8,2774.3,0.90108]
[1643748151312,0.1802,2774.8,2774.3,2.90380798]
[1643748151512,0.1802,2774.8,2774.3,2.91586123]
[1643748151711,0.1802,2774.8,2774.3,2.92863905]
[1643748151912,0.1802,2774.8,2774.4,0.90108]
[1643748152114,0.04092649,2774.9,2774.5,2.05286521]
[1643748152515,0.04092649,2774.9,2774.6,0.90099]
[1643748152719,0.04092649,2774.9,2774.8,4.42199275]
[1643748152914,0.04092649,2774.9,2774.8,0.92199275]
[1643748153323,0.04092649,2774.9,2774.8,1.33222339]
[1643748153919,0.04092649,2774.9,2774.8,0.92199275]
[1643748154122,0.04092649,2774.9,2774.8,2.72369275]
[1643748154357,0.04092649,2774.9,2774.8,3.72369275]
[1643748154558,0.04092649,2774.9,2774.8,2.72369275]
[1643748154761,0.04092649,2774.9,2774.8,3.72369275]
[1643748155160,0.04092649,2774.9,2774.8,2.72369275]
[1643748155561,0.04092649,2774.9,2774.7,2.70263]
[1643748155762,0.04092649,2774.9,2774.5,2.8018]
[1643748155967,0.04035807,2774.8,2774.6,1.0]
[1643748156360,0.04433703,2775.5,2774.5,2.8018]
[1643748156560,0.04433703,2775.5,2774.5,1.8018]
[1643748156561,0.34667088,2775.2,2774.5,1.8018]
[1643748156761,0.34667088,2775.2,2774.6,1.0]
[1643748156961,0.04206334,2775.1,2774.5,2.8018]
[1643748157162,0.90605869,2775.1,2774.5,2.73405931]
[1643748157362,0.04149491,2775.0,2774.6,1.0]
[1643748157561,0.04149491,2775.0,2774.5,2.73405931]
[1643748157861,0.04149491,2775.0,2774.4,1.80194]
[1643748158123,0.04149491,2775.0,2774.3,1.98218]
[1643748158319,1.52261642,2774.9,2774.3,2.80208]
[1643748158522,0.22169491,2775.0,2774.3,2.80208]
[1643748158719,0.04035807,2774.8,2774.3,2.80208]
[1643748159822,0.04035807,2774.8,2774.4,0.90107]
[1643748160018,0.04035807,2774.8,2774.4,1.8021]
[1643748160218,0.04035807,2774.8,2774.4,2.8021]
[1643748160418,0.04035807,2774.8,2774.3,1.80208]
[1643748160619,0.04035807,2774.8,2774.3,2.80208]
[1643748162466,0.04035807,2774.8,2774.4,0.90105]
[1643748162963,0.0391533,2774.8,2774.4,0.90105]
[1643748163566,1.52251654,2774.7,2774.4,0.90105]
[1643748164468,6.8,2774.5,2773.9,0.37502025]
[1643748164672,8.8,2774.5,2773.8,1.0]
[1643748164876,8.8,2774.5,2773.4,0.1802]
[1643748164877,0.01219563,2774.3,2773.4,0.1802]
[1643748165067,1.5226974,2774.2,2773.0,2.23294]
[1643748165266,1.5226974,2774.2,2772.9,5.50256]
[1643748165267,0.1802,2774.1,2772.9,5.50256]
[1643748165513,1.5226974,2774.0,2772.9,5.50256]
[1643748165715,1.5226974,2774.0,2773.3,0.83270722]
[1643748165716,0.1802,2773.9,2773.3,0.83270722]
[1643748165914,0.1802,2774.2,2773.3,0.83270722]
[1643748166111,1.52289238,2774.1,2773.3,0.83270722]
[1643748166316,1.52289238,2774.0,2773.3,0.83270722]
[1643748166513,0.1802,2774.4,2773.3,0.83270722]
[1643748166712,2.41418483,2774.3,2773.3,0.83270722]
[1643748166912,1.52288655,2774.2,2773.3,0.83270722]
[1643748167112,1.52288655,2774.2,2773.3,3.63534722]
[1643748167412,1.52288655,2774.2,2773.4,1.0]
[1643748167612,1.52288655,2774.2,2773.3,1.73402722]
[1643748167913,0.1802,2774.4,2773.3,1.73402722]
[1643748167914,0.1802,2774.4,2774.1,3.2]
[1643748168117,0.0391533,2774.8,2774.1,3.2]
[1643748168118,0.0391533,2774.8,2774.1,4.92111]
[1643748168318,1.52254793,2774.7,2774.2,1.0]
[1643748168517,1.52254793,2774.7,2774.1,0.1802]
[1643748168721,1.52254793,2774.7,2774.0,1.80213]
[1643748168920,1.90427574,2774.7,2774.0,1.80213]
[1643748169120,1.52254793,2774.6,2774.0,1.80213]
[1643748169371,1.52254793,2774.5,2774.0,1.80213]
[1643748169569,1.52254793,2774.4,2774.0,1.80213]
[1643748169771,1.52254793,2774.4,2773.8,0.1802]
[1643748169969,1.52254793,2774.4,2773.7,0.2044]
[1643748169970,1.70274793,2774.4,2773.7,0.2044]
[1643748170175,1.52254793,2774.3,2773.7,0.2044]
[1643748170775,1.52254793,2774.3,2773.8,1.30690303]
[1643748171078,1.52254793,2774.3,2773.7,0.2044]
[1643748172074,1.52254793,2774.3,2773.7,1.1057]
[1643748172278,1.52254793,2774.3,2773.7,2.00694]
[1643748172883,1.52254793,2774.3,2773.7,3.00694]
[1643748173313,1.52254793,2774.3,2773.8,0.6]
[1643748173512,0.1802,2774.7,2773.9,1.80237]
[1643748173715,1.52267993,2774.6,2774.3,0.85744897]
[1643748174812,1.52267993,2774.6,2774.1,0.90113]
[1643748175215,1.52267993,2774.5,2774.0,1.0]
[1643748175422,0.0391533,2774.8,2774.0,1.0]
[1643748175618,1.52257943,2774.7,2774.0,1.0]
[1643748175822,1.52257943,2774.7,2774.3,0.90111]
[1643748176016,0.0391533,2774.8,2774.4,0.90098]
[1643748176217,0.0391533,2774.8,2774.4,1.20098]
[1643748176875,0.0391533,2774.8,2774.5,3.2354335]
[1643748177074,0.0391533,2774.8,2774.6,0.41137958]
[1643748177276,0.0391533,2774.8,2774.6,1.41137958]
[1643748177680,0.0391533,2774.8,2774.6,1.71137958]
[1643748178081,0.0391533,2774.8,2774.6,1.41137958]
[1643748178281,0.0391533,2774.8,2774.6,2.31230958]
[1643748178484,0.0391533,2774.8,2774.6,2.61230958]
[1643748178882,0.0391533,2774.8,2774.6,2.31230958]
[1643748180513,0.0391533,2774.8,2774.6,2.61230958]
[1643748180813,0.0391533,2774.8,2774.6,2.91230958]
[1643748182013,0.8718348,2775.6,2774.6,2.91230958]
[1643748182014,0.1801,2775.6,2774.6,2.91230958]
[1643748182219,1.3213933,2775.9,2774.9,0.90089]
[1643748182516,2.09447293,2776.1,2775.0,3.43328705]
[1643748182517,0.1801,2775.8,2775.0,3.43328705]
[1643748182714,0.68277402,2776.1,2775.0,3.43328705]
[1643748182715,0.1801,2776.0,2775.3,0.34409893]
[1643748182914,0.35361753,2776.3,2775.4,0.52]
[1643748182915,0.68277402,2776.2,2775.4,0.52]
[1643748183118,0.68277402,2776.3,2775.4,0.52]
[1643748183319,1.68483599,2776.2,2775.6,0.91006901]
[1643748183523,0.86287402,2776.4,2775.6,0.91006901]
[1643748183719,0.86287402,2776.4,2775.6,1.81064901]
[1643748183920,0.86287402,2776.4,2775.8,0.90056]
[1643748184965,0.86287402,2776.4,2775.9,0.90061]
[1643748185166,0.68277402,2776.5,2775.9,0.17774506]
[1643748185464,0.1801,2776.6,2775.9,0.17774506]
[1643748185465,0.86287402,2776.6,2775.9,0.17774506]
[1643748185664,0.86287402,2776.6,2775.9,2.14469852]
[1643748185865,0.42581869,2776.3,2775.9,0.17774506]
[1643748186065,0.68277402,2776.5,2776.0,0.90052]
[1643748186266,0.68277402,2776.5,2776.0,1.80109]
[1643748186870,0.68277402,2776.6,2776.0,1.80109]
[1643748187067,0.68277402,2776.6,2776.0,0.90057]
[1643748187271,0.43143027,2776.5,2776.0,0.90057]
[1643748187466,0.68277402,2776.6,2776.0,0.85057]
[1643748187666,0.1799,2776.5,2776.0,0.85057]
[1643748187872,0.86033769,2776.3,2776.0,0.85057]
[1643748189527,0.68277402,2776.5,2776.0,0.85057]
[1643748189727,0.1799,2776.4,2776.0,0.85057]
[1643748190128,0.1801,2776.5,2776.0,0.85057]
[1643748190526,0.67122001,2776.3,2776.0,0.85057]
[1643748190724,0.1801,2776.5,2776.0,0.85057]
[1643748191970,1.01556455,2776.5,2776.0,0.85057]
[1643748192169,0.96644703,2776.5,2776.0,0.85057]
[1643748193472,0.06584703,2776.5,2776.0,0.85057]
[1643748193776,0.67875503,2777.3,2776.4,0.01289632]
[1643748193978,1.34823922,2778.1,2777.2,0.01257189]
[1643748194173,0.79882226,2778.2,2777.3,0.52]
[1643748194378,0.18,2778.3,2777.3,0.52]
[1643748194678,0.18,2778.3,2777.9,0.8468175]
[1643748194872,1.3087589,2778.4,2777.9,0.8468175]
[1643748194873,0.09416,2778.4,2777.9,0.8468175]
[1643748195075,0.09416,2778.4,2777.9,1.7467775]
[1643748195509,0.09416,2778.4,2777.9,2.7467775]
[1643748196313,0.09416,2778.4,2778.0,0.52]
[1643748196712,0.1799,2778.8,2778.4,0.8029106]
[1643748197513,0.007,2778.9,2778.6,0.01233725]
[1643748197712,0.007,2778.9,2778.7,0.52]
[1643748198615,0.007,2778.9,2778.8,5.49958]
[1643748198815,0.007,2778.9,2778.8,7.01958]
[1643748199260,0.007,2778.9,2778.8,2.78993171]
[1643748199463,0.1799,2779.9,2779.0,6.8]
[1643748199661,0.1799,2779.9,2778.8,3.09680611]
[1643748199662,0.31022,2780.2,2779.2,0.89944]
[1643748199866,0.1797,2780.3,2779.3,2.65726298]
[1643748200265,0.1797,2780.3,2779.4,1.0]
[1643748200460,0.1797,2780.3,2779.9,0.85262554]
[1643748200461,0.57019915,2780.3,2779.9,0.85262554]
[1643748200661,6.1,2780.2,2779.7,0.84143978]
[1643748200862,0.1797,2780.1,2779.7,0.84143978]
[1643748201465,0.1797,2780.2,2779.7,0.84143978]
[1643748201864,0.18032,2780.4,2779.8,2.52]
[1643748201865,0.1797,2780.3,2779.8,2.52]
[1643748202064,0.05,2780.4,2779.8,0.52649448]
[1643748202261,0.05,2780.4,2779.9,1.0]
[1643748202468,1.1681923,2780.9,2780.0,6.46118112]
[1643748202667,1.51994231,2780.8,2780.0,0.71118112]
[1643748202864,1.51994231,2780.8,2780.5,0.68956418]
[1643748203124,1.51994231,2780.8,2780.6,0.15053265]
[1643748203326,0.9883923,2780.9,2780.8,0.15053265]
[1643748203522,0.9883923,2780.9,2780.8,0.67053265]
[1643748204124,0.9883923,2780.9,2780.8,0.15053265]
[1643748204325,0.9883923,2780.9,2780.1,0.1797]
[1643748204326,6.8005,2780.8,2780.1,0.1797]
[1643748204528,1.82991578,2780.7,2780.1,0.1797]
[1643748204724,22.69989578,2780.6,2780.1,0.1797]
[1643748204923,0.1797,2780.5,2780.1,0.1797]
[1643748205127,0.1797,2780.5,2779.8,0.74183969]
[1643748205128,5.25690589,2780.5,2779.8,0.74183969]
[1643748205327,0.1797,2780.4,2779.8,0.74183969]
[1643748205523,0.1797,2780.4,2779.6,0.52]
[1643748206123,0.13032,2780.6,2779.6,0.52]
[1643748206124,0.1797,2780.5,2779.6,0.52]
[1643748206528,0.1797,2780.7,2779.9,0.74213829]
[1643748206763,0.1797,2780.7,2779.9,1.26213829]
[1643748206964,0.1797,2780.8,2779.9,1.26213829]
[1643748207563,0.1797,2780.8,2779.9,1.64965413]
[1643748207766,0.1797,2780.8,2779.9,1.26213829]
[1643748208169,1.70136109,2780.9,2779.9,1.26213829]
[1643748208366,1.88106109,2780.9,2779.9,1.26213829]
[1643748208767,0.32603306,2780.5,2779.9,1.26213829]
[1643748209171,0.32603306,2780.5,2779.9,0.52]
[1643748209368,1.99782694,2780.4,2779.7,0.1797]
[1643748209667,1.99782694,2780.4,2779.5,1.52]
[1643748209668,0.1797,2780.4,2779.5,1.52]
[1643748209868,0.1797,2780.4,2779.5,0.52]
[1643748210067,0.1797,2780.4,2779.5,1.41933]
[1643748210276,0.69920297,2780.0,2779.5,1.41933]
[1643748210521,1.95441067,2779.9,2779.4,0.1797]
[1643748210821,1.95441067,2779.9,2779.2,3.25767]
[1643748210822,0.69920297,2780.0,2779.2,0.1797]
[1643748211018,0.69920297,2780.0,2779.1,0.1797]
[1643748211319,0.39365676,2779.2,2779.0,0.1797]
[1643748211518,0.1799,2779.8,2778.9,0.97513153]
[1643748211718,0.92856183,2779.5,2778.9,0.13819997]
[1643748212325,0.1799,2780.2,2779.0,0.6999]
[1643748212622,0.1799,2780.2,2779.5,0.8993]
[1643748212824,0.1797,2780.5,2779.6,0.52]
[1643748213624,0.89352023,2780.2,2779.6,0.52]
[1643748214882,0.35168558,2779.7,2779.3,1.79859]
[1643748215083,1.29339198,2779.7,2779.3,1.79859]
[1643748215388,1.29339198,2779.7,2779.1,0.1797]
[1643748215586,1.29339198,2779.7,2778.8,0.31789997]
[1643748215781,1.29339198,2779.7,2778.8,0.13819997]
[1643748216281,0.1799,2779.6,2778.8,0.13819997]
[1643748216481,0.1799,2780.0,2778.9,0.89947]
[1643748216683,0.1797,2780.2,2778.9,0.89947]
[1643748217281,0.33813851,2780.0,2778.9,1.29953322]
[1643748217484,0.1797,2779.9,2778.9,2.29953322]
[1643748217882,0.76038754,2779.8,2779.1,0.81165513]
[1643748218321,0.1797,2779.9,2779.2,2.06493256]
[1643748218520,1.18783891,2780.8,2779.2,2.06493256]
[1643748218521,0.1797,2780.2,2779.3,0.89938]
[1643748218719,0.1797,2780.7,2779.4,2.75795616]
[1643748218919,0.1297,2780.7,2779.4,2.93765616]
[1643748219320,1.19428102,2780.5,2779.8,0.82847672]
[1643748219525,0.1797,2780.4,2779.8,0.82847672]
[1643748219719,0.1797,2780.4,2779.4,1.6117]
[1643748219921,0.1797,2780.4,2779.4,3.63463218]
[1643748220120,0.1797,2780.4,2779.5,0.89928]
[1643748220725,0.1797,2780.4,2779.6,2.11290322]
[1643748220920,0.1797,2780.4,2779.9,0.76066656]
[1643748221120,0.4797,2780.4,2779.9,0.76066656]
[1643748221321,0.4797,2780.4,2779.5,0.89928]
[1643748221521,22.09002,2780.4,2779.4,1.1797]
[1643748221762,22.09002,2780.4,2779.3,0.1797]
[1643748221763,21.18,2780.3,2779.3,0.1797]
[1643748221963,0.38172288,2779.8,2779.1,0.1797]
[1643748222162,0.91002,2780.4,2779.1,0.1797]
[1643748222163,21.18,2780.1,2779.1,0.1797]
[1643748222362,0.87744684,2779.8,2779.1,1.01149594]
[1643748222564,21.18,2780.1,2779.1,1.01149594]
[1643748223370,21.13,2780.1,2779.1,1.01149594]
[1643748223571,0.3543669,2779.9,2779.1,1.01149594]
[1643748223768,0.99999999,2780.8,2779.1,1.01149594]
[1643748223769,0.1797,2780.0,2779.2,2.0]
[1643748223967,0.13032,2780.7,2779.2,2.0]
[1643748223968,0.1797,2780.6,2779.2,1.33138]
[1643748224167,0.1797,2780.6,2779.2,2.33138]
[1643748224570,0.1797,2780.6,2779.2,4.33138]
[1643748224768,0.55733587,2780.6,2779.5,0.42212952]
[1643748224971,0.86105669,2780.5,2779.8,0.95336169]
[1643748225170,2.5,2780.3,2779.3,1.05549024]
[1643748225372,0.1797,2780.4,2779.4,0.432]
[1643748226023,0.1797,2780.4,2779.5,2.00667684]
[1643748226220,0.41894311,2780.1,2779.5,0.432]
[1643748226621,0.1797,2780.4,2779.8,0.95334601]
[1643748226821,0.1797,2780.4,2779.8,0.3]
[1643748227221,0.1797,2780.4,2779.6,1.6]
[1643748227423,0.86105669,2780.5,2779.6,1.3]
[1643748227825,0.86105669,2780.5,2779.6,1.0]
[1643748228023,0.86105669,2780.5,2779.6,1.3]
[1643748228225,0.86105669,2780.5,2779.5,1.47636033]
[1643748228429,0.86105669,2780.5,2779.6,1.3]
[1643748228630,0.39316314,2780.3,2779.6,1.3]
[1643748228826,0.39316314,2780.3,2779.6,1.0]
[1643748229271,0.39316314,2780.3,2779.5,2.47636033]
[1643748229459,0.39316314,2780.3,2779.5,1.432]
[1643748229659,0.39316314,2780.3,2779.5,0.432]
[1643748230259,0.39316314,2780.3,2779.4,1.0]
[1643748230461,21.57316314,2780.3,2779.4,1.0]
[1643748230662,21.57316314,2780.3,2779.0,3.62045]
[1643748230663,0.83369705,2779.7,2779.1,1.1797]
[1643748230962,0.83369705,2779.7,2779.1,0.1797]
[1643748231268,0.83369705,2779.7,2778.9,0.25]
[1643748231269,22.01369705,2779.7,2778.9,0.25]
[1643748231461,0.43684404,2779.4,2778.9,0.25]
[1643748231761,0.1799,2779.6,2778.7,1.0]
[1643748231961,0.90381556,2779.2,2778.7,1.0]
[1643748232161,0.90381556,2779.2,2778.6,1.97887]
[1643748232361,0.90381556,2779.2,2778.6,2.97887]
[1643748233019,0.34195651,2779.4,2778.6,2.97887]
[1643748233926,21.89419741,2779.5,2778.6,2.97887]
[1643748234722,0.40503833,2779.3,2778.6,2.97887]
[1643748234923,21.89419741,2779.5,2778.6,2.97887]
[1643748235123,21.89419741,2779.5,2778.7,2.00967996]
[1643748235326,21.89419741,2779.5,2778.7,1.0]
[1643748235722,22.19419741,2779.5,2778.6,2.97887]
[1643748236127,0.1799,2779.9,2778.8,0.89952]
[1643748236327,0.43270874,2780.0,2779.0,0.38218568]
[1643748236529,0.43270874,2780.0,2779.1,2.14317537]
[1643748236766,0.1797,2779.9,2779.1,2.14317537]
[1643748237166,0.1797,2779.9,2779.1,3.14317537]
[1643748237366,0.1797,2779.9,2779.1,1.0]
[1643748237770,1.52009671,2779.8,2779.0,1.432]
[1643748237967,1.52009671,2779.8,2779.1,1.89942]
[1643748238371,1.52009671,2779.8,2779.1,1.0]
[1643748238577,0.77479605,2779.4,2779.1,1.0]
[1643748238975,1.52017674,2779.3,2779.1,1.0]
[1643748239774,1.52017674,2779.3,2779.1,2.0]
[1643748239976,6.95,2779.2,2779.1,2.0]
[1643748240278,2.12017674,2779.2,2779.1,2.0]
[1643748240520,27.55017674,2779.2,2779.1,2.0]
[1643748241118,29.48251443,2779.2,2779.1,2.0]
[1643748241317,23.14862953,2779.2,2779.1,2.0]
[1643748241621,1.52017674,2779.2,2779.1,2.0]
[1643748242217,1.52017674,2779.5,2779.1,2.0]
[1643748244024,1.52017674,2779.5,2779.1,2.3]
[1643748244275,0.8861145,2780.1,2779.1,2.6]
[1643748244276,0.66458587,2780.1,2779.1,2.6]
[1643748244473,1.5198914,2780.0,2779.2,0.6117]
[1643748244668,1.5198914,2779.9,2779.4,0.79479664]
[1643748244871,1.5198914,2779.8,2779.5,0.1797]
[1643748245068,1.5198914,2779.7,2779.5,0.1797]
[1643748245273,1.5198914,2779.6,2779.5,0.1797]
[1643748245469,1.5198914,2780.1,2779.5,4.1797]
[1643748246271,2.0,2780.3,2779.6,1.3]
[1643748246272,1.5198914,2780.0,2779.6,1.3]
[1643748246470,1.3452742,2780.8,2779.6,1.3]
[1643748246471,1.5198914,2779.9,2779.7,2.05150802]
[1643748246771,1.5198914,2779.8,2779.7,2.05150802]
[1643748246974,2.18447727,2780.4,2779.6,1.732]
[1643748247169,1.5198914,2780.3,2779.6,1.732]
[1643748247373,0.66458587,2780.4,2779.6,1.732]
[1643748247374,1.5198914,2780.2,2779.6,1.732]
[1643748247574,0.66458587,2780.3,2779.6,3.450636]
[1643748247773,0.66458587,2780.3,2779.6,1.432]
[1643748248417,0.66458587,2780.2,2779.6,1.432]
[1643748248615,1.5198914,2780.1,2779.6,3.47529774]
[1643748248818,1.5198914,2780.0,2779.6,1.432]
[1643748249015,1.5198914,2779.9,2779.6,1.432]
[1643748249314,1.5198914,2779.8,2779.6,0.432]
[1643748249520,1.5198914,2779.7,2779.6,0.732]
[1643748249818,2.36417727,2780.4,2779.6,1.032]
[1643748250016,2.36417727,2780.4,2779.6,0.432]
[1643748250017,1.5198914,2780.3,2779.6,0.432]
[1643748250217,1.51862774,2780.3,2779.6,0.432]
[1643748250618,1.1255405,2780.0,2779.6,0.432]
[1643748250821,4.72222024,2780.4,2779.6,0.432]
[1643748251217,0.66458587,2780.3,2779.6,0.432]
[1643748251421,23.95647929,2780.4,2779.6,0.432]
[1643748251619,2.59677929,2780.3,2779.6,0.432]
[1643748251863,0.40257333,2779.8,2779.6,0.432]
[1643748252762,0.3,2780.1,2779.6,0.432]
[1643748253166,3.07647929,2780.3,2779.6,0.432]
[1643748253867,2.41189342,2780.3,2779.8,0.90927704]
[1643748254267,2.41189342,2780.3,2779.5,0.1797]
[1643748254966,0.35436575,2780.0,2779.5,0.1797]
[1643748255166,2.41189342,2780.3,2779.4,1.37902]
[1643748255367,2.41189342,2780.3,2779.7,0.68210883]
[1643748255812,2.11189342,2780.3,2779.7,0.68210883]
[1643748256013,21.3597,2780.4,2779.7,0.68210883]
[1643748256213,0.34363163,2780.1,2779.5,1.0]
[1643748256717,0.34363163,2780.1,2779.4,2.37902]
[1643748256913,0.34363163,2780.1,2779.4,1.37902]
[1643748257113,0.34363163,2780.1,2779.4,2.07902]
[1643748257319,0.34363163,2780.1,2779.4,1.37902]
[1643748257716,1.14428587,2780.4,2779.8,0.78349893]
[1643748257917,2.0,2780.3,2779.4,1.07902]
[1643748258118,0.4797,2780.4,2779.4,1.07902]
[1643748258119,2.13032,2780.2,2779.4,1.07902]
[1643748258319,2.13032,2780.2,2779.1,2.0]
[1643748258320,0.1797,2780.1,2779.1,2.0]
[1643748258919,0.53163114,2780.1,2779.1,2.36169366]
[1643748259118,0.53163114,2780.1,2779.6,0.71133846]
[1643748259365,0.53163114,2780.1,2779.1,2.0]
[1643748259766,0.1797,2780.1,2779.1,2.0]
[1643748259972,0.1797,2780.1,2779.2,0.89942]
[1643748260167,2.4797,2780.4,2779.3,0.1797]
[1643748260367,0.1797,2780.2,2779.4,0.80443955]
[1643748260666,0.3,2780.4,2779.4,0.80443955]
[1643748260667,0.1797,2780.3,2779.4,0.80443955]
[1643748261668,1.14428587,2780.4,2779.4,0.80443955]
[1643748262268,0.31570943,2780.0,2779.4,0.80443955]
[1643748262871,1.01182279,2780.0,2779.2,2.07912]
[1643748263144,1.74214279,2780.0,2779.2,0.1797]
[1643748263339,0.1797,2779.9,2779.2,0.1797]
[1643748264338,0.37695987,2779.8,2779.2,0.1797]
[1643748264539,0.31002,2779.9,2779.1,2.78124499]
[1643748265544,0.1797,2779.9,2779.3,0.44353585]
[1643748265748,0.1797,2780.0,2779.4,2.37142857]
[1643748265943,3.07364571,2780.9,2779.4,2.37142857]
[1643748265944,0.1797,2780.5,2779.4,3.47243342]
[1643748266144,0.66458587,2780.7,2779.5,0.28070485]
[1643748266343,0.1797,2780.6,2779.6,2.131064]
[1643748266544,0.51296021,2780.6,2780.0,0.68507518]
[1643748266966,0.1797,2780.6,2780.0,0.68507518]
[1643748267969,0.1797,2780.6,2780.0,1.13344612]
[1643748268170,0.1797,2780.8,2780.1,2.08276001]
[1643748268371,0.1797,2780.8,2780.1,1.0]
[1643748268570,0.1797,2780.8,2780.0,1.68507518]
[1643748268969,1.66881858,2780.8,2780.0,0.68507518]
[1643748269570,0.66458587,2780.7,2780.0,0.68507518]
[1643748269778,0.1797,2780.6,2780.0,0.68507518]
[1643748269974,0.1797,2780.7,2780.0,0.68507518]
[1643748270174,1.51967349,2780.6,2780.0,0.68507518]
[1643748270376,1.46967349,2780.6,2779.8,0.89929]
[1643748270624,0.1797,2780.5,2779.6,1.2358]
[1643748271020,0.35742862,2780.1,2779.4,0.1797]
[1643748271221,21.49002,2780.5,2779.4,0.1797]
[1643748271421,0.31002,2780.5,2779.4,1.05624067]
[1643748271623,0.1797,2780.5,2779.7,0.89933]
[1643748271822,0.1797,2780.5,2779.8,2.1145619]
[1643748272020,0.1797,2780.5,2779.7,1.19933]
[1643748272222,0.1797,2780.5,2779.7,2.19933]
[1643748272422,0.1797,2780.6,2779.7,2.19933]
[1643748272624,0.69793633,2780.1,2779.7,0.89933]
[1643748272927,0.69793633,2780.1,2779.4,1.3874]
[1643748272928,0.1797,2780.6,2779.4,1.2077]
[1643748273125,0.1797,2780.6,2779.6,0.89936]
[1643748273326,0.84428587,2780.7,2779.6,0.89936]
[1643748273725,1.75200655,2780.7,2779.9,0.87797827]
[1643748273926,0.66458587,2780.6,2780.0,0.41973308]
[1643748274127,0.1797,2780.5,2780.0,0.41973308]
[1643748274364,1.78329817,2780.9,2780.0,2.71973308]
[1643748274365,0.1797,2780.8,2780.0,2.71973308]
[1643748274565,0.9883923,2780.9,2780.0,2.71973308]
[1643748274768,0.9883923,2780.9,2780.1,1.0]
[1643748274963,0.9883923,2780.9,2780.2,0.1797]
[1643748275165,0.9883923,2780.9,2780.1,0.1797]
[1643748275366,0.9883923,2780.9,2780.1,1.79819]
[1643748276166,0.9883923,2780.9,2780.4,0.69813991]
[1643748278224,0.9883923,2780.9,2780.1,2.79819]
[1643748278424,2.92376644,2780.9,2780.1,1.79819]
[1643748278720,4.85532693,2780.9,2780.1,1.79819]
[1643748278923,4.89369841,2780.9,2780.1,1.79819]
[1643748279120,4.89369841,2780.9,2780.2,0.7939779]
[1643748279321,0.9883923,2780.9,2780.2,1.7939779]
[1643748280122,0.9883923,2780.9,2780.2,0.7939779]
[1643748280729,0.9883923,2780.9,2780.2,1.7939779]
[1643748280926,0.9883923,2780.9,2780.2,0.7939779]
[1643748281124,0.9883923,2780.9,2780.2,1.7939779]
[1643748285920,0.9883923,2780.9,2780.3,1.99613003]
[1643748286327,0.9883923,2780.9,2780.2,1.7939779]
[1643748286724,1.2883923,2780.9,2780.2,1.7939779]
[1643748287329,0.9883923,2780.9,2780.3,2.92924873]
[1643748287726,0.9883923,2780.9,2780.4,1.0]
[1643748288527,0.9883923,2780.9,2780.7,0.91780892]
[1643748288928,0.9883923,2780.9,2780.8,2.0046875]
[1643748289127,0.9883923,2780.9,2780.8,2.5226875]
[1643748289564,0.9883923,2780.9,2780.8,2.54561976]
[1643748289765,0.9883923,2780.9,2780.8,3.54561976]
[1643748289962,0.9883923,2780.9,2780.8,2.54561976]
[1643748290167,0.9883923,2780.9,2780.8,3.54561976]
[1643748290568,2.50766252,2780.9,2780.8,3.54561976]
[1643748290769,2.50766252,2780.9,2780.8,0.54093226]
[1643748291173,2.50766252,2780.9,2780.7,1.16052181]
[1643748291373,0.9883923,2780.9,2780.8,0.518]
[1643748291972,2.50769803,2780.9,2780.8,0.518]
[1643748292170,0.9883923,2780.9,2780.8,0.518]
[1643748292373,0.9883923,2780.9,2780.8,0.87777968]
[1643748292771,0.9883923,2780.9,2780.8,2.96405496]
[1643748293023,0.1797,2781.6,2780.8,11.06405496]
[1643748293228,1.51902606,2781.5,2780.8,12.87376376]
[1643748293427,1.3452742,2782.6,2780.8,12.87376376]
[1643748293428,0.1797,2782.0,2781.0,0.89871]
[1643748293627,0.66458587,2782.2,2781.0,0.89871]
[1643748293628,1.55929091,2781.9,2781.4,0.80219684]
[1643748293829,1.51893285,2781.8,2781.4,0.80219684]
[1643748294030,1.51893285,2781.8,2781.5,0.518]
[1643748294229,1.51893285,2781.7,2781.5,0.518]
[1643748294429,1.51893285,2782.0,2781.5,0.518]
[1643748294627,1.51893285,2781.9,2781.5,0.518]
[1643748295330,1.51893285,2781.9,2781.2,0.1797]
[1643748295528,1.51893285,2781.9,2781.1,3.2002]
[1643748295529,1.51893285,2781.9,2781.1,0.1797]
[1643748295729,1.81893285,2781.9,2781.1,0.1797]
[1643748295929,1.51893285,2781.8,2781.3,0.92214788]
[1643748296431,0.22062648,2782.0,2781.1,0.1797]
[1643748296432,1.51893285,2781.9,2781.1,0.1797]
[1643748296635,1.51893285,2781.8,2781.1,0.1797]